Cogmind - Beta 9 @@@ ROGUE MODE // 2019.10.28 @ 13:53:51 Player: MrPainting Result: Self-destructed Performance ------------- Evolutions (1) 500 Regions Visited (5) 1000 Robots Destroyed (71) 355 Value Destroyed (1172) 1172 Prototype IDs (4) 80 Alien Tech Used (0) 0 Bonus (328) 328 TOTAL SCORE: 3435 Bonus ------- High Alert Combat Kills 28 Aligned with FarCom 300 Cogmind --------- Core Integrity 126/400 Matter 45/300 Energy 97/100 System Corruption 0% Temperature Cool (298) Location -8/Mines Parts ------- Power (1) Propulsion (3) Potential Leg Potential Leg Utility (3) High-capacity Storage Unit Hardened Medium Armor Plating Weapon (2) Particle Cannon Assault Cannon Inventory (12) Light Ion Engine High-capacity Storage Unit High-capacity Battery (400) Signal Interpreter Advanced Targeting Computer Hacking Suite Hacking Suite Hacking Suite Hacking Suite Assault Cannon Flak Cannon Flak Cannon Peak State ------------ Power Ion Engine Propulsion Light Treads Potential Leg Potential Leg Utility High-capacity Storage Unit Hardened Medium Armor Plating PSU Rigger Weapon Assault Cannon Assault Cannon Inventory Light Ion Engine High-capacity Storage Unit High-capacity Battery Signal Interpreter Advanced Targeting Computer Hacking Suite Hacking Suite Hacking Suite Hacking Suite Tractor Beam Flak Cannon Flak Cannon [Rating: 42] Favorites ----------- Power Ion Engine Engine Ion Engine Propulsion Light Treads Treads Light Treads Leg Aluminum Leg Utility Hardened Medium Armor Plating Device Tractor Beam Storage Large Storage Unit Processor Advanced Targeting Computer Protection Hardened Medium Armor Plating Weapon Flak Cannon Energy Gun Beam Rifle Energy Cannon Beam Cannon Ballistic Gun Heavy Assault Rifle Ballistic Cannon Flak Cannon Launcher Grenade Launcher Build | -11 -10 -9 -9 -9 -8 ------- Run | Scr Mat Mat Min Exi Min Slots Evolved 2 | . . 2 . . . Power . | . . . . . . Propulsion 1 | . . 1 . . . Utility 1 | . . 1 . . . Weapon . | . . . . . . Parts Attached 51 | 6 5 24 5 6 5 Power 4 | 1 . 2 1 . . Engine 4 | 1 . 2 1 . . Core . | . . . . . . Reactor . | . . . . . . Propulsion 10 | 2 . 5 1 2 . Treads 6 | . . 5 1 . . Leg 4 | 2 . . . 2 . Wheel . | . . . . . . Hover . | . . . . . . Flight . | . . . . . . Utility 14 | 1 2 5 1 4 1 Device 6 | . 1 . 1 3 1 Storage 3 | 1 1 . . 1 . Processor 1 | . . 1 . . . Hackware . | . . . . . . Protection 4 | . . 4 . . . Artifact . | . . . . . . Weapon 23 | 2 3 12 2 . 4 Energy Gun 2 | . . 2 . . . Energy Cannon 4 | . 3 . . . 1 Ballistic Gun 8 | 2 . 6 . . . Ballistic Cannon 7 | . . 2 2 . 3 Launcher 2 | . . 2 . . . Special Weapon . | . . . . . . Impact Weapon . | . . . . . . Slashing Weapon . | . . . . . . Piercing Weapon . | . . . . . . Special Melee Weapon . | . . . . . . Unidentified Prototypes 4 | . . 1 . 3 . Parts Lost 7 | . . 3 1 . 3 Power 2 | . . 1 . . 1 Propulsion 2 | . . . 1 . 1 Utility 2 | . . 1 . . 1 Weapon 1 | . . 1 . . . Highest Loss Streak 3 | . . 1 1 . 3 Average Slot Usage (%) 95 | . 89 94 97 98 98 Engine 9 | . 14 6 11 11 10 Treads 21 | . . 26 30 26 10 Leg 10 | . 28 6 . 6 22 Device 4 | . 5 1 6 9 11 Storage 11 | . 14 11 11 11 11 Processor 5 | . . 9 4 . . Protection 9 | . . 10 11 11 11 Energy Cannon 4 | . 26 . . . 6 Ballistic Gun 6 | . 1 13 . . . Ballistic Cannon 10 | . . 5 22 22 15 Naked Turns . | . . . . . . Heaviest Build 58 | 13 28 39 42 57 58 Greatest Support 60 | 20 20 60 60 60 60 Greatest Overweight (x) 2 | . 1 1 . 2 . Average Overweight (x) . | . . . . . . Largest Inventory Capacity 12 | 6 12 10 10 12 12 Average Capacity 10 | 5 9 10 10 11 12 Most Carried 12 | 4 9 10 10 12 12 Average Carried 9 | 1 6 9 9 11 12 Final Capacity 12 | . . . . . 12 Final Carried 12 | . . . . . 12 Class Distribution -------------------- 85% | Mutant 14% | Scavenger-Mutant Dominant Class ---------------- Mutant | -10/Materials Mutant | -9/Materials Mutant | -9/Mines Mutant | -9/Exiles Mutant | -8/Mines Resources | -11 -10 -9 -9 -9 -8 ----------- Run | Scr Mat Mat Min Exi Min Matter Collected 1438 | 224 86 783 272 . 73 Remotely 196 | . . . 186 . 10 Salvage Created 1596 | . 182 1162 179 . 73 Parts 132 | . 17 96 10 . 9 Haulers Intercepted 2 | . 1 1 . . . Recyclers Shooed 4 | . . 3 1 . . Parts Field Recycled . | . . . . . . Retrieved Matter . | . . . . . . Parts Self-Destructed . | . . . . . . Prevented . | . . . . . . Kills | -11 -10 -9 -9 -9 -8 ------- Run | Scr Mat Mat Min Exi Min Combat Hostiles Destroyed 48 | . 6 29 8 . 5 Guns 12 | . . 12 . . . Cannons 33 | . 6 15 8 . 4 AOE 2 | . . 2 . . . Classes Destroyed 11 | . 5 4 1 . 1 Worker 7 | . 1 6 . . . Builder 4 | . . 3 1 . . Hauler 2 | . 1 1 . . . Recycler 4 | . . 3 1 . . Operator 2 | . . 2 . . . Watcher 4 | . 1 3 . . . Swarmer 27 | . 5 14 4 . 4 Grunt 12 | . 1 9 2 . . Duelist 1 | . . . . . 1 Sentry 6 | . . 6 . . . Assembled 2 | . . . 2 . . Best Kill Streak 8 | . 3 8 4 . 3 Combat Bots Only 5 | . 3 5 4 . 3 Max Kills in Single Turn 3 | . 1 3 1 . 2 Gunslinging . | . . . . . . Exploded 2 | . . 2 . . . Melee . | . . . . . . Uniques/NPCs Destroyed . | . . . . . . Combat | -11 -10 -9 -9 -9 -8 -------- Run | Scr Mat Mat Min Exi Min Damage Taken 2356 | . 221 1476 186 . 473 Core 346 | . 72 193 20 . 61 Absorbed by Shields . | . . . . . . Core Remaining (%) 85 | 100 71 . . . . Volleys Fired 159 | . 17 107 26 . 9 Largest 2 | . 2 2 2 . 2 Hottest 120 | . 120 88 88 . 112 Shots Fired 302 | . 34 200 52 . 16 Gun 151 | . . 151 . . . Cannon 146 | . 34 44 52 . 16 Launcher 5 | . . 5 . . . Special . | . . . . . . Kinetic 239 | . . 176 52 . 11 Thermal 58 | . 34 19 . . 5 Explosive 5 | . . 5 . . . Electromagnetic . | . . . . . . Robot Hit Streak 11 | . 5 11 8 . 10 Robot Miss Streak 10 | . 2 10 5 . 8 Penetration Max . | . . . . . . Secondary Targets 1 | . . 1 . . . Max Gunslinging Chain 1 | . . 1 . . . Shots Hit Robots 186 | . 15 135 24 . 12 Core Hits 110 | . 9 80 14 . 7 Critical Hits . | . . . . . . Critical Kills . | . . . . . . Critical Parts Destroyed . | . . . . . . Melee Attacks . | . . . . . . Impact . | . . . . . . Slashing . | . . . . . . Piercing . | . . . . . . Sneak Attacks . | . . . . . . Combat Hostiles . | . . . . . . Follow-up Attacks . | . . . . . . Damage Inflicted 3360 | . 265 2384 387 . 324 Guns 1349 | . . 1349 . . . Cannons 1480 | . 265 583 387 . 245 Explosions 452 | . . 452 . . . Melee . | . . . . . . Ramming 79 | . . . . . 79 Kinetic 2322 | . . 1772 387 . 163 Thermal 507 | . 265 160 . . 82 Explosive 452 | . . 452 . . . Electromagnetic . | . . . . . . Impact . | . . . . . . Slashing . | . . . . . . Piercing . | . . . . . . Highest Corruption . | . . . . . . Average Corruption . | . . . . . . Corruption Purged . | . . . . . . Overload Shots . | . . . . . . Overflow Damage 33 | . . 33 . . . Projectiles . | . . . . . . Explosions 33 | . . 33 . . . Melee . | . . . . . . Knockbacks 18 | . . 11 4 . 3 Impact . | . . . . . . Kinetic 18 | . . 11 4 . 3 Secondary . | . . . . . . Self-Inflicted Damage 25 | . . . . . 25 Shots . | . . . . . . Rammed 8 | . . . . . 8 Targets Rammed 11 | . . . . . 11 Kicked 3 | . . . . . 3 Crushed . | . . . . . . Highest Temperature 310 | . 300 216 231 . 310 Average Temperature 68 | . 112 46 61 . 98 Received Heat Transfer 525 | . . 444 . . 81 Effects 3 | . 3 . . . . Interference 3 | . 3 . . . . Siege Activations . | . . . . . . Robots Corrupted . | . . . . . . Combat Hostiles . | . . . . . . Parts Fried 1 | . . . . . 1 Impact Corruptions 1 | . . . . . 1 Robots Melted . | . . . . . . Combat Hostiles . | . . . . . . Parts Melted 3 | . 2 1 . . . Heat Transferred 1110 | . 555 407 . . 148 Parts Sabotaged . | . . . . . . Parts Stolen . | . . . . . . Parts Stripped . | . . . . . . Power Chain Reactions . | . . . . . . Missiles Intercepted . | . . . . . . Alert | -11 -10 -9 -9 -9 -8 ------- Run | Scr Mat Mat Min Exi Min Peak Influence 524 | . 188 524 314 . 81 Average Influence 164 | . 72 183 262 . 73 Maximum Alert Level 2 | . . 2 1 . . Low Security (%) 68 | . . . . . . Level 1 25 | . . . . . . Level 2 6 | . . . . . . Level 3 . | . . . . . . Level 4 . | . . . . . . Level 5 . | . . . . . . High Security . | . . . . . . Max Security . | . . . . . . Squads Dispatched 2 | . . 2 . . . Investigation . | . . . . . . Extermination . | . . . . . . Reinforcement 2 | . . 2 . . . Assault . | . . . . . . Garrison . | . . . . . . Intercept . | . . . . . . Construction Impeded 1 | . . 1 . . . Haulers Reinforced . | . . . . . . Stealth | -11 -10 -9 -9 -9 -8 --------- Run | Scr Mat Mat Min Exi Min Distress Signals 5 | . 1 4 . . . Communications Jammed . | . . . . . . Distress Signals . | . . . . . . Times Spotted 63 | . 9 39 7 . 8 Peak Tracking Total 4 | . 4 4 4 . 4 Tactical Retreats 3 | . . 2 1 . . Traps | -11 -10 -9 -9 -9 -8 ------- Run | Scr Mat Mat Min Exi Min Traps Triggered 1 | . . 1 . . . Indirectly . | . . . . . . Trap Hack Attempts . | . . . . . . Triggered . | . . . . . . Disarmed . | . . . . . . Reprogrammed . | . . . . . . Reused . | . . . . . . Traps Extracted . | . . . . . . Installed . | . . . . . . Triggered . | . . . . . . Machines | -11 -10 -9 -9 -9 -8 ---------- Run | Scr Mat Mat Min Exi Min Machines Disabled . | . . . . . . Max in Single Turn . | . . . . . . Machines Sabotaged . | . . . . . . Garrisons Compromised . | . . . . . . Overloaded Fab Kills . | . . . . . . Fab Network Shutdowns . | . . . . . . Hacking | -11 -10 -9 -9 -9 -8 --------- Run | Scr Mat Mat Min Exi Min Machines Accessed 4 | . 2 2 . . . Terminals 4 | . 2 2 . . . Fabricators . | . . . . . . Repair Stations . | . . . . . . Recycling Units . | . . . . . . Scanalyzers . | . . . . . . Garrison Access . | . . . . . . Total Hacks 9 | . 5 4 . . . Successful 5 | . 2 3 . . . Failed 4 | . 3 1 . . . Catastrophic 1 | . 1 . . . . Database Lockouts . | . . . . . . Manual 7 | . 3 3 . 1 . Terminals 9 | . 5 4 . . . Fabricators . | . . . . . . Repair Stations . | . . . . . . Recycling Units . | . . . . . . Scanalyzers . | . . . . . . Garrison Access . | . . . . . . Terminal Hacks 1 | . . 1 . . . Branch Access Points 1 | . . 1 . . . Fabricator Hacks . | . . . . . . Repair Station Hacks . | . . . . . . Recycling Unit Hacks . | . . . . . . Scanalyzer . | . . . . . . Garrison Access Hacks . | . . . . . . Unauthorized Hacks 10 | . 5 5 . . . Terminals 4 | . 2 2 . . . Botnet 4 | . 2 2 . . . Fabricators . | . . . . . . Repair Stations . | . . . . . . Recycling Units . | . . . . . . Scanalyzers . | . . . . . . Garrison Access . | . . . . . . Data Cores Recovered 1 | . . 1 . . . Used . | . . . . . . Hacking Detections 4 | . 2 2 . . . Full Trace Events 1 | . 1 . . . . Feedback Events . | . . . . . . Feedback Blocked . | . . . . . . Robot Schematics Acquired . | . . . . . . Robots Built . | . . . . . . Matter . | . . . . . . Time . | . . . . . . Total Robot Build Rating . | . . . . . . Part Schematics Acquired . | . . . . . . Parts Built . | . . . . . . Matter . | . . . . . . Time . | . . . . . . Total Part Build Rating . | . . . . . . Parts Repaired . | . . . . . . Time . | . . . . . . Parts Recycled . | . . . . . . Recycled Matter . | . . . . . . Retrieved Matter . | . . . . . . Retrieved Components . | . . . . . . Parts Scanalyzed . | . . . . . . Part Schematics Acquired . | . . . . . . Parts Damaged . | . . . . . . Bothacking | -11 -10 -9 -9 -9 -8 ------------ Run | Scr Mat Mat Min Exi Min Used RIF Installer . | . . . . . . Robots Hacked . | . . . . . . Non-combat . | . . . . . . Combat . | . . . . . . Robot Hacks Applied . | . . . . . . Relay Couplers Released . | . . . . . . Robots Rewired . | . . . . . . Allies Hacked . | . . . . . . Hacks Repelled . | . . . . . . Allies | -11 -10 -9 -9 -9 -8 -------- Run | Scr Mat Mat Min Exi Min Total Allies . | . . . . . . Largest Group . | . . . . . . Highest-Rated Group . | . . . . . . Highest-Rated Ally . | . . . . . . Total Orders . | . . . . . . Ally Attacks . | . . . . . . Total Damage . | . . . . . . Kills . | . . . . . . Allies Corrupted . | . . . . . . Allies Melted . | . . . . . . Intel | -11 -10 -9 -9 -9 -8 ------- Run | Scr Mat Mat Min Exi Min Robot Analysis Total . | . . . . . . Derelict Logs Recovered 3 | . . . 3 . . Drone Launches 1 | . . . . 1 . Drone Recoveries . | . . . . . . Exploration | -11 -10 -9 -9 -9 -8 ------------- Run | Scr Mat Mat Min Exi Min Turns Passed 2676 | 73 422 1158 466 387 170 Spaces Moved 1414 | 61 239 475 237 290 112 Core 19 | 19 . . . . . Treads 871 | . . 475 237 159 . Legs 524 | 42 239 . . 131 112 Wheels . | . . . . . . Hover . | . . . . . . Flight . | . . . . . . Fastest Speed 50 | 50 120 160 160 90 90 Average Speed 143 | 98 142 163 160 128 90 Slowest Speed 200 | 120 150 180 160 200 90 Overloaded Moves . | . . . . . . Propulsion Burnouts . | . . . . . . Robots Hopped . | . . . . . . Cave-ins Triggered . | . . . . . . Exploration Rate (%) 47 | 5 44 46 57 68 65 Regions Visited 5 Branch Regions 3 Pre-discovered Areas . | . . . . . . Known Exits Taken 1 | . . 1 . . . Unknown Exits Taken 4 | 1 1 . 1 1 . Scrap Searched 2 | . . . 2 . . Spaces Dug . | . . . . . . Terrain Destroyed 25 | . . 20 4 . 1 Melee . | . . . . . . Projectile 5 | . . . 4 . 1 AOE 20 | . . 20 . . . Actions | -11 -10 -9 -9 -9 -8 --------- Run | Scr Mat Mat Min Exi Min Total 1760 | 74 287 661 270 305 163 Wait 60 | . 18 17 1 . 24 Move 1409 | 60 238 474 236 289 112 Hop . | . . . . . . Pick Up 36 | 8 5 17 1 4 1 Fast Attach 14 | . 3 7 1 3 . Attach 15 | 6 1 5 1 2 . Detach 3 | . 2 1 . . . Swap 22 | . 1 12 3 1 5 Drop 31 | . 2 21 1 6 1 Fire 159 | . 17 107 26 . 9 Melee . | . . . . . . Ram . | . . . . . . Kick 11 | . . . . . 11 Crush . | . . . . . . Escape Stasis . | . . . . . . Rewire . | . . . . . . Trap . | . . . . . . Miscellaneous . | . . . . . . Route ------- -11/Scrapyard -10/Materials (discovered 2 exits: *Mat / [*Min]) -9/Materials (discovered 2 exits: *Min x2) -9/Mines (discovered 2 exits: [*Mat] / *Exi) -9/Exiles -8/Mines (discovered 1 exit: [*Mat]) History --------- Turn | Location | Event 11 | -11/Scrapyard | Discovered new exit (range 14) 74 | -11/Scrapyard | Entered Materials 271 | -10/Materials | Discovered new exit (range 15) 311 | -10/Materials | Build established: Mutant 444 | -10/Materials | Discovered new exit (range 14) 496 | -10/Materials | Entered another Materials area 496 | -9/Materials | Evolved 2 slots: Propulsion x1, Utility x1 877 | -9/Materials | Discovered new exit (range 16) 1330 | -9/Materials | Identified exit to Mines 1654 | -9/Materials | Entered Mines 1661 | -9/Mines | Core integrity fell below 50% 1704 | -9/Mines | Learned Materials security intel 1892 | -9/Mines | Discovered new exit (range 9) 1943 | -9/Mines | Learned Materials stockpile data 1949 | -9/Mines | Learned location of 2 exits from Materials 1987 | -9/Mines | Excavation squad dispatched 1987 | -9/Mines | A large section of the Mines collapsed 2113 | -9/Mines | Deemed a non-threat by the Exiles lab entrance 2113 | -9/Mines | Discovered new exit (range 5) 2120 | -9/Mines | Entered Exiles 2159 | -9/Exiles | Met 8R-AWN 2186 | -9/Exiles | Met EX-HEX 2299 | -9/Exiles | Met EX-BIN 2318 | -9/Exiles | Aligned with FarCom system 2320 | -9/Exiles | Given EX-Vault access code 2357 | -9/Exiles | Opened EX-Vault 2364 | -9/Exiles | Found Prototype Device 2365 | -9/Exiles | Identified PSU Rigger 2371 | -9/Exiles | Found Prototype Device 2372 | -9/Exiles | Identified Supersonic Drone Bay 2385 | -9/Exiles | Found Prototype Leg 2385 | -9/Exiles | Identified Potential Leg 2388 | -9/Exiles | Found Potential Leg 2424 | -9/Exiles | Warned to stay clear of 0b10 Research branches 2451 | -9/Exiles | Met EX-DEC 2500 | -9/Exiles | Discovered new exit (range 10) 2507 | -9/Exiles | Stole two prototypes: Potential Leg, PSU Rigger 2507 | -9/Exiles | Entered Mines 2507 | -8/Mines | Accompanied by 1 ally 2512 | -8/Mines | Discovered new exit (range 61) 2677 | -8/Mines | Self-destructed Last Messages --------------- 02532_ Kicked S-10 Pest out of the way. 02533_ Slammed into S-10 Pest. 02535_ Kicked S-10 Pest out of the way. 02536_ Slammed into S-10 Pest. 02537_ Destroyed Lgt. Ion Engine. 02537_ S-10 Pest system corrupted by crushing effect. 02538_ S-10 Pest system terminally corrupted. 02538_ Flight Unit fried. 02538_ Acquired 20 matter. 02572_ Dropped PSU Rigger. 02572_ Acquired Particle Cannon. 02633_ K-01 Serf collects debris. 02661_ L-31 Rogue knocked back. 02668_ Ion Engine destroyed. 02669_ Lgt. Treads destroyed. 02670_ L-31 Rogue knocked back. 02672_ Tractor Beam destroyed. 02673_ L-31 Rogue destroyed. 02676_ Acquired 17 matter. 02677_ Penetrated by Slug. Map ----- +----------------------------------------------------+ | ???????# =[ "#???????????????????????????? | | ???????# ## ##???????????????????????????? | | ???????## #### ###?????????????######???????? | | ????????### #??# ##???????????## ##??????? | | ####??????# #??# #???????????# ##?????? | | # ######?# #??# #??????????## ##????? | | ### #??# ##????????### #????? | | ## #??# ##???????### #????? | | ## #?## #???????## % ##????? | | !### ### #???????# ## ##?????? | | ## #?# ## #???????# ## ##?###??????? | | #### ##?# # #???????###??# #???????????? | | #??## #??# ##???????????# ######??????? | | ##### #?## ##??????????# #?????? | | ## #?# #??????????# ##### #?????? | | ?# ## ### ##?????????# #???# ##????? | | ?#??# ## ###????#### ### ##???? | | ????# # ###### #???? | | ????# #???? | | ???# ##### ### #???? | | ??# ##???##### ##??# #??? | | ??# #????????## ## ## ###????# #??? | | ??## ###?????????### ####### #??????? ##??? | | ???####?????????????# #???## ######??? ##???? | | ????????????????????# ##### h #????##????? | | ????????????????????# g @ ## #??????????? | | ????????????????????# g ! ## #??###?????? | | ????????????????????######## ## #?# ##????? | | ???????????????????????????### ### ## ##???? | | ?????????????????????????????###### # #???? | | ????????????????????????#####???## / #???? | | ????????????????????????? #???# #????? | | ????????????????????????? #???#! ###????? | | ?????????????????????????# #???# ##??????? | | ?????????????????????????# ##??## ! !######???? | | ???????????##????????????# ##??# ####### ##??? | | ??????????## ????????????# #??# #??## #??? | | ??????????# ????????????# #??# #??# ##?? | | ??????????# ??????###### #??# #??# #?? | | ??????????# ?????## ## ##??# ##### #?? | | ??????????# ????## ##???# #??? | | ??????????# ##??# ##????# #??? | | ??????????# #### ##?????# #### #??? | | ??????????# ##??????# #??# #??? | | ?????????# ## ####???##### ##?# ##??? | | ??????# ### ##???#### #### ##???? | | ??????# #?# ##????# """ ## ##????? | | ??????# ##?# ####### ## """ ## ## #?????? | | ??????## ###??# ## """ #??## #?????? | | ???????# #?????###### ##### #???# #?????? | +----------------------------------------------------+ Best States ------------- Heat Dissipation 28 Energy Generation 10 Energy Capacity 250 Matter Stores 300 Matter Capacity 300 Sight Range 16 Robot Scan Range 10 Terrain Scan Density 10 Armor Coverage 225 Evasion (%) 50 Targeting Accuracy 8 Recoil Reduction 3 Item Schematics ----------------- None Robot Schematics ------------------ None Fabricated ------------ Nothing Alien Tech Used ----------------- None Achievements -------------- None Challenges ------------ None Game ------ Seed DirtySpectralAmplifier Manual? 0 Play Time 00:22:51 Cumulative 41.1 hours Start 2019.10.28 @ 13:32:58 End 2019.10.28 @ 13:53:51 Sessions 1 Manual Loads 0 Difficulty Rogue Special Mode None Game No. 65 Rogue 65 Adventurer 0 Explorer 0 Win Type - Total 0 Types 0/0/0/0/0/0/0 Lore% 27 Gallery% 32 Achievement% 26 Wizard Run 0 Options --------- ASCII 0 Keyboard 0 Movement Mouse Keybinds 0 Fullscreen 1 Font 18/SmallcapsGlow Map View 76x50 Tactical HUD 1 Map Filters NONE Filters NONE Steam 1 RUN: f9c61752-7918-45de-b243-93cdd60255e0